[Event "3eme tournoi de MI de JUVISY"]
[Site "Juvisy/Orge, France"]
[Date "2019.06.30"]
[Round "2.1"]
[White "MSELLEK, Ilyass"]
[Black "MOUHAMAD, Joachim"]
[Result "1-0"]
[ECO "B80"]
[WhiteElo "2239"]
[BlackElo "2302"]
[PlyCount "157"]
[EventDate "2019.??.??"]
[TimeControl "6600+1965"]
[WhiteClock "0:04:08"]
[BlackClock "0:01:52"]

1. e4 {[%emt 0:00:07]} c5 {[%emt 0:00:43]} 2. Nf3 {[%emt 0:00:09]} Nc6 {[%emt
0:00:49]} 3. d4 {[%emt 0:00:17]} cxd4 {[%emt 0:00:03]} 4. Nxd4 {[%emt 0:00:05]}
e6 {[%emt 0:03:40]} 5. Nc3 {[%emt 0:00:32]} d6 {[%emt 0:00:57]} 6. Be3 {[%emt
0:00:23]} Nf6 {[%emt 0:00:39]} 7. Qe2 {[%emt 0:00:24]} Be7 {[%emt 0:03:30]} 8.
O-O-O {[%emt 0:03:39]} a6 {[%emt 0:33:10]} 9. g4 {[%emt 0:13:56]} Nd7 {[%emt 0:
08:54]} 10. f4 {[%emt 0:10:00]} Qc7 {[%emt 0:05:53]} 11. Kb1 {[%emt 0:20:03]}
b5 {[%emt 0:06:45]} 12. Bg2 {[%emt 0:11:23]} Bb7 {[%emt 0:01:34]} 13. Nxc6 {
[%emt 0:11:00]} Qxc6 {[%emt 0:02:22]} 14. a3 {[%emt 0:03:31]} Rc8 {[%emt 0:00:
48]} 15. g5 {[%emt 0:04:15]} Qc4 {[%emt 0:02:05]} 16. Qg4 {[%emt 0:02:47]} O-O
{[%emt 0:05:31]} 17. Rd4 {[%emt 0:09:36]} Qc7 {[%emt 0:00:54]} 18. h4 {[%emt 0:
06:27]} e5 {[%emt 0:10:03]} 19. Rd2 {[%emt 0:00:27]} exf4 {[%emt 0:00:23]} 20.
Bxf4 {[%emt 0:00:49]} Rfd8 {[%emt 0:04:56]} 21. h5 {[%emt 0:00:49]} Ne5 {[%emt
0:01:09]} 22. Bxe5 {[%emt 0:00:44]} dxe5 {[%emt 0:00:02]} 23. Rxd8+ {[%emt 0:
01:08]} Bxd8 {[%emt 0:08:12]} 24. g6 {[%emt 0:00:42]} Bf6 {[%emt 0:02:22]} 25.
Rd1 {[%emt 0:00:18]} Rd8 {[%emt 0:00:29]} 26. Nd5 {[%emt 0:00:36]} Bxd5 {[%emt
0:00:11]} 27. exd5 {[%emt 0:00:15]} Qd7 {[%emt 0:04:03]} 28. gxf7+ {[%emt 0:01:
40]} Kxf7 {[%emt 0:00:32]} 29. Qe4 {[%emt 0:00:40]} Kg8 {[%emt 0:01:25]} 30.
Rd3 {[%emt 0:01:51]} Qf7 {[%emt 0:01:12]} 31. Bf3 {[%emt 0:05:24]} g6 {[%emt 0:
01:23]} 32. Bg4 {[%emt 0:00:48]} Kg7 {[%emt 0:00:06]} 33. Be6 {[%emt 0:00:51]}
Qa7 {[%emt 0:00:44]} 34. Rf3 {[%emt 0:01:22]} Rf8 {[%emt 0:00:52]} 35. hxg6 {
[%emt 0:00:25]} Qg1+ {[%emt 0:00:41]} 36. Ka2 {[%emt 0:00:03]} hxg6 {[%emt 0:
00:28]} 37. Rd3 {[%emt 0:00:36]} Qf2 {[%emt 0:00:22]} 38. Rc3 {[%emt 0:00:57]}
Qd4 {[%emt 0:00:44]} 39. Rc7+ {[%emt 0:00:15]} Kh6 {[%emt 0:00:01]} 40. Qh1+ {
[%emt 0:00:49]} Qh4 {[%emt 0:00:25]} 41. Qg1 {[%emt 0:09:42]} e4 {[%emt 0:05:
02]} 42. Qe3+ {[%emt 0:08:38]} Bg5 {[%emt 0:00:42]} 43. Qa7 {[%emt 0:00:26]}
Rh8 {[%emt 0:00:46]} 44. Rc6 {[%emt 0:07:26]} Bf6 {[%emt 0:08:38]} 45. Qf7 {
[%emt 0:03:11]} Rh7 {[%emt 0:09:01]} 46. Qf8+ {[%emt 0:00:07]} Bg7 {[%emt 0:00:
39]} 47. Qf1 {[%emt 0:00:27]} Be5 {[%emt 0:07:26]} 48. Bf5 {[%emt 0:04:44]} Bf6
{[%emt 0:02:06]} 49. Bxe4 {[%emt 0:05:16]} Qxe4 {[%emt 0:00:23]} 50. Qxf6 {
[%emt 0:00:07]} Qxd5+ {[%emt 0:00:13]} 51. b3 {[%emt 0:00:06]} Qe4 {[%emt 0:00:
48]} 52. Rc3 {[%emt 0:00:41]} Qg4 {[%emt 0:02:49]} 53. Rc5 {[%emt 0:02:00]} Rg7
{[%emt 0:04:01]} 54. Rc8 {[%emt 0:00:36]} Rh7 {[%emt 0:01:00]} 55. Rc5 {[%emt
0:00:36]} Rg7 {[%emt 0:00:13]} 56. Qf8 {[%emt 0:01:41]} Qd7 {[%emt 0:02:21]}
57. Qh8+ {[%emt 0:01:02]} Rh7 {[%emt 0:00:03]} 58. Qf6 {[%emt 0:00:36]} Rf7 {
[%emt 0:00:44]} 59. Qh8+ {[%emt 0:01:21]} Rh7 {[%emt 0:00:06]} 60. Qe5 {[%emt
0:01:09]} Re7 {[%emt 0:00:52]} 61. Qh8+ {[%emt 0:00:41]} Rh7 62. Qf6 {[%emt 0:
00:06]} Rf7 {[%emt 0:00:16]} 63. Qxa6 {[%emt 0:01:03]} Rf5 {[%emt 0:01:03]} 64.
Qc8 {[%emt 0:00:30]} Qxc8 {[%emt 0:00:36]} 65. Rxc8 {[%emt 0:00:01]} g5 {[%emt
0:00:06]} 66. c4 {[%emt 0:00:30]} g4 {[%emt 0:01:15]} 67. cxb5 {[%emt 0:00:28]}
Rf2+ {[%emt 0:01:55]} 68. Kb1 {[%emt 0:00:10]} g3 {[%emt 0:00:01]} 69. Rc3 {
[%emt 0:00:48]} g2 {[%emt 0:00:07]} 70. Rg3 {[%emt 0:00:19]} Rf1+ {[%emt 0:01:
38]} 71. Kc2 {[%emt 0:00:03]} g1=Q {[%emt 0:00:06]} 72. Rxg1 {[%emt 0:00:01]}
Rxg1 {[%emt 0:00:06]} 73. a4 {[%emt 0:00:31]} Kg6 {[%emt 0:00:18]} 74. b6 {
[%emt 0:00:23]} Kf6 {[%emt 0:00:44]} 75. b7 {[%emt 0:00:07]} Rg8 {[%emt 0:00:
49]} 76. a5 {[%emt 0:00:03]} Ke5 {[%emt 0:00:09]} 77. a6 {[%emt 0:00:14]} Kd4 {
[%emt 0:01:12]} 78. a7 {[%emt 0:00:13]} Rg2+ {[%emt 0:00:10]} 79. Kb1 {[%emt 0:
00:06]} 1-0

[Event "3eme tournoi de MI de JUVISY"]
[Site "Juvisy/Orge, France"]
[Date "2019.06.30"]
[Round "2.4"]
[White "BON, Michael"]
[Black "LAZO, Andrei"]
[Result "0-1"]
[ECO "C02"]
[WhiteElo "2400"]
[BlackElo "2279"]
[PlyCount "58"]
[EventDate "2019.??.??"]
[TimeControl "6600+950"]
[WhiteClock "0:10:48"]
[BlackClock "0:17:22"]

1. e4 e6 {[%emt 0:00:05]} 2. d4 {[%emt 0:00:07]} d5 {[%emt 0:00:05]} 3. e5 {
[%emt 0:00:07]} c5 {[%emt 0:00:06]} 4. c3 {[%emt 0:00:03]} Qb6 {[%emt 0:00:05]}
5. Nf3 {[%emt 0:00:06]} Nc6 {[%emt 0:00:04]} 6. a3 {[%emt 0:00:09]} Nh6 {[%emt
0:00:06]} 7. b4 {[%emt 0:00:12]} cxd4 {[%emt 0:00:05]} 8. b5 {[%emt 0:00:16]}
Na5 {[%emt 0:03:19]} 9. Bxh6 {[%emt 0:00:43]} gxh6 {[%emt 0:00:07]} 10. cxd4 {
[%emt 0:00:05]} Bd7 {[%emt 0:00:41]} 11. Nbd2 {[%emt 0:00:30]} Rc8 {[%emt 0:00:
35]} 12. a4 {[%emt 0:07:54]} Rg8 {[%emt 0:05:06]} 13. g3 {[%emt 0:05:09]} Rg4 {
[%emt 0:02:05]} 14. Bd3 {[%emt 0:07:46]} Bb4 {[%emt 0:08:02]} 15. O-O {[%emt 0:
10:27]} Bc3 {[%emt 0:15:19]} 16. Rc1 {[%emt 0:04:28]} Bxd4 {[%emt 0:05:24]} 17.
Rxc8+ {[%emt 0:02:19]} Bxc8 {[%emt 0:00:05]} 18. Kg2 {[%emt 0:12:03]} Bc5 {
[%emt 0:07:30]} 19. h3 {[%emt 0:02:15]} Rb4 {[%emt 0:03:28]} 20. Qc2 {[%emt 0:
07:37]} Bd7 {[%emt 0:03:53]} 21. Bxh7 {[%emt 0:02:30]} a6 {[%emt 0:08:42]} 22.
Rc1 {[%emt 0:11:18]} Nc4 {[%emt 0:07:08]} 23. Bg8 {[%emt 0:09:08]} Rb2 {[%emt
0:16:10]} 24. Qh7 {[%emt 0:01:14]} Nxd2 {[%emt 0:04:51]} 25. Bxf7+ {[%emt 0:16:
19]} Kd8 {[%emt 0:00:22]} 26. Qh8+ {[%emt 0:00:12]} Kc7 {[%emt 0:00:51]} 27.
Nxd2 {[%emt 0:00:49]} Rxd2 {[%emt 0:02:11]} 28. Qf8 {[%emt 0:00:17]} Rxf2+ {
[%emt 0:00:47]} 29. Kh1 {[%emt 0:00:03]} Rf1+ {[%emt 0:00:31]} 0-1

[Event "3eme tournoi de MI de JUVISY"]
[Site "Juvisy/Orge, France"]
[Date "2019.06.30"]
[Round "2.2"]
[White "DELORME, Alban"]
[Black "NGUYEN, Vincent"]
[Result "1-0"]
[ECO "A04"]
[WhiteElo "2327"]
[BlackElo "2315"]
[PlyCount "115"]
[EventDate "2019.??.??"]
[TimeControl "6600+1720"]
[WhiteClock "0:11:49"]
[BlackClock "0:22:00"]

1. Nf3 {[%emt 0:00:25]} e6 {[%emt 0:00:22]} 2. g3 {[%emt 0:01:30]} f5 {[%emt 0:
00:12]} 3. Bg2 {[%emt 0:01:46]} Nf6 {[%emt 0:00:07]} 4. O-O {[%emt 0:02:02]}
Be7 {[%emt 0:00:23]} 5. d3 {[%emt 0:02:39]} O-O {[%emt 0:00:07]} 6. Nbd2 {
[%emt 0:02:29]} d6 {[%emt 0:00:46]} 7. e4 {[%emt 0:02:36]} fxe4 {[%emt 0:02:31]
} 8. dxe4 {[%emt 0:02:08]} e5 {[%emt 0:00:40]} 9. c3 {[%emt 0:00:12]} Kh8 {
[%emt 0:02:23]} 10. Nh4 {[%emt 0:07:46]} Nc6 {[%emt 0:03:35]} 11. Nc4 {[%emt 0:
05:09]} Ng8 {[%emt 0:04:30]} 12. Nf5 {[%emt 0:15:23]} Bxf5 {[%emt 0:03:49]} 13.
exf5 {[%emt 0:00:06]} Rxf5 {[%emt 0:00:05]} 14. Qd3 {[%emt 0:00:11]} Rf8 {
[%emt 0:02:21]} 15. b4 {[%emt 0:03:21]} a6 {[%emt 0:07:17]} 16. a4 {[%emt 0:01:
59]} Qc8 {[%emt 0:13:06]} 17. Ba3 {[%emt 0:04:35]} Rd8 {[%emt 0:18:30]} 18.
Rfe1 {[%emt 0:29:09]} Nf6 {[%emt 0:11:47]} 19. b5 {[%emt 0:04:27]} axb5 {[%emt
0:04:24]} 20. axb5 {[%emt 0:00:27]} Na5 {[%emt 0:00:05]} 21. Nd2 {[%emt 0:00:
05]} c5 {[%emt 0:06:08]} 22. c4 {[%emt 0:04:41]} Ra7 {[%emt 0:04:36]} 23. Bb2 {
[%emt 0:01:38]} b6 {[%emt 0:00:07]} 24. Bc3 {[%emt 0:01:12]} Qb8 {[%emt 0:00:
30]} 25. Ne4 {[%emt 0:00:32]} Nxe4 {[%emt 0:06:38]} 26. Bxe4 {[%emt 0:00:21]}
g6 {[%emt 0:00:06]} 27. f4 {[%emt 0:03:49]} Bf6 {[%emt 0:00:05]} 28. Bd5 {
[%emt 0:01:36]} Bg7 {[%emt 0:01:16]} 29. Ra2 {[%emt 0:07:14]} Rf8 {[%emt 0:03:
55]} 30. fxe5 {[%emt 0:02:31]} dxe5 {[%emt 0:00:05]} 31. Rae2 {[%emt 0:00:33]}
Re7 {[%emt 0:00:18]} 32. Re4 {[%emt 0:01:09]} Qd6 {[%emt 0:02:38]} 33. Qe3 {
[%emt 0:00:55]} Rfe8 {[%emt 0:00:31]} 34. Bb2 {[%emt 0:00:59]} Qc7 {[%emt 0:02:
57]} 35. Ra1 {[%emt 0:01:11]} Qd6 {[%emt 0:01:02]} 36. Kg2 {[%emt 0:01:01]} Rd8
{[%emt 0:00:31]} 37. Re1 {[%emt 0:00:18]} Rde8 {[%emt 0:00:15]} 38. Ra1 {[%emt
0:00:05]} Rd8 {[%emt 0:00:04]} 39. Ra3 {[%emt 0:00:58]} Rf8 {[%emt 0:01:58]}
40. Bc3 {[%emt 0:00:35]} Nb7 {[%emt 0:06:45]} 41. Qe2 {[%emt 0:19:44]} Rb8 {
[%emt 0:07:25]} 42. Ra7 {[%emt 0:01:44]} Bf6 {[%emt 0:02:36]} 43. Rxb7 {[%emt
0:03:45]} Rbxb7 {[%emt 0:01:21]} 44. Bxb7 {[%emt 0:00:07]} Rxb7 {[%emt 0:00:03]
} 45. Rxe5 {[%emt 0:00:13]} Kg7 {[%emt 0:02:22]} 46. Re6 {[%emt 0:01:43]} Qxe6
{[%emt 0:01:25]} 47. Qxe6 {[%emt 0:00:06]} Bxc3 {[%emt 0:00:03]} 48. Qc6 {
[%emt 0:00:12]} Rf7 {[%emt 0:00:07]} 49. Qxb6 {[%emt 0:00:26]} Bd4 {[%emt 0:00:
04]} 50. h4 {[%emt 0:03:51]} h5 {[%emt 0:00:17]} 51. Qc6 {[%emt 0:01:17]} Rf2+
{[%emt 0:03:22]} 52. Kh3 {[%emt 0:00:07]} Rb2 {[%emt 0:00:43]} 53. b6 {[%emt 0:
01:06]} Be5 {[%emt 0:00:30]} 54. Qxc5 {[%emt 0:00:35]} Kf6 {[%emt 0:00:05]} 55.
Qe3 {[%emt 0:00:26]} Ke6 {[%emt 0:03:09]} 56. Qd3 {[%emt 0:01:10]} Kf6 {[%emt
0:06:00]} 57. c5 {[%emt 0:00:20]} Kf7 {[%emt 0:00:19]} 58. Qe3 {[%emt 0:00:45]}
1-0

[Event "3eme tournoi de MI de JUVISY"]
[Site "Juvisy/Orge, France"]
[Date "2019.07.01"]
[Round "3.1"]
[White "NGUYEN, Vincent"]
[Black "GEVORGYAN, David Sh"]
[Result "0-1"]
[ECO "C55"]
[WhiteElo "2315"]
[BlackElo "2321"]
[PlyCount "94"]
[EventDate "2019.??.??"]
[TimeControl "6600+3395"]
[WhiteClock "0:36:19"]
[BlackClock "0:29:04"]

1. e4 {[%emt 0:00:02]} e5 {[%emt 0:00:08]} 2. Nf3 {[%emt 0:00:05]} Nc6 {
[%emt 0:00:05]} 3. Bc4 {[%emt 0:00:04]} Be7 {[%emt 0:00:09]} 4. d3 {[%emt 0:01:
48]} Nf6 {[%emt 0:00:33]} 5. a4 {[%emt 0:00:15]} O-O {[%emt 0:00:50]} 6. O-O {
[%emt 0:00:11]} d6 {[%emt 0:00:32]} 7. h3 {[%emt 0:00:50]} Kh8 {[%emt 0:02:44]}
8. Ng5 {[%emt 0:09:54]} Kg8 {[%emt 0:01:40]} 9. f4 {[%emt 0:09:44]} d5 {
[%emt 0:57:03]} 10. exd5 {[%emt 0:19:32]} Nxd5 {[%emt 0:00:21]} 11. Qh5 {
[%emt 0:00:31]} h6 {[%emt 0:00:25]} 12. Ne4 {[%emt 0:18:10]} Nxf4 {[%emt 0:11:
59]} 13. Bxf4 {[%emt 0:00:37]} exf4 {[%emt 0:00:06]} 14. Rxf4 {[%emt 0:03:40]}
Qd4+ {[%emt 0:01:04]} 15. Kh1 {[%emt 0:01:38]} Qe5 {[%emt 0:02:14]} 16. Qxe5 {
[%emt 0:05:09]} Nxe5 {[%emt 0:02:59]} 17. Bb3 {[%emt 0:00:02]} g5 {[%emt 0:02:
53]} 18. Rf2 {[%emt 0:02:04]} Kg7 {[%emt 0:00:18]} 19. Nbc3 {[%emt 0:02:23]} f5
{[%emt 0:16:12]} 20. Nd2 {[%emt 0:02:31]} c6 {[%emt 0:01:20]} 21. d4 {[%emt 0:
07:23]} Ng6 {[%emt 0:00:21]} 22. Re1 {[%emt 0:03:33]} g4 {[%emt 0:03:43]} 23.
Rfe2 {[%emt 0:01:53]} Bh4 {[%emt 0:00:04]} 24. Rf1 {[%emt 0:00:43]} Bd7 {
[%emt 0:02:48]} 25. Be6 {[%emt 0:03:00]} Bxe6 {[%emt 0:01:15]} 26. Rxe6 {
[%emt 0:00:07]} Rad8 {[%emt 0:00:58]} 27. Nb3 {[%emt 0:00:06]} h5 {[%emt 0:00:
33]} 28. Nc5 {[%emt 0:03:38]} b6 {[%emt 0:00:27]} 29. Nd3 {[%emt 0:00:28]} Rxd4
{[%emt 0:00:38]} 30. Rxc6 {[%emt 0:00:12]} Bd8 {[%emt 0:00:37]} 31. b3 {
[%emt 0:02:17]} Rf6 {[%emt 0:00:26]} 32. Rc8 {[%emt 0:00:58]} Rd7 {[%emt 0:00:
07]} 33. Ra8 {[%emt 0:01:11]} Rc6 {[%emt 0:00:32]} 34. Ne2 {[%emt 0:03:17]}
Rxc2 {[%emt 0:00:53]} 35. Nef4 {[%emt 0:00:01]} Bc7 {[%emt 0:00:31]} 36. Nb4 {
[%emt 0:04:01]} Rcd2 {[%emt 0:00:26]} 37. Ne6+ {[%emt 0:02:20]} Kf6 {[%emt 0:
00:31]} 38. Nf8 {[%emt 0:00:08]} Rf7 {[%emt 0:00:32]} 39. Nxg6 {[%emt 0:00:42]}
Kxg6 {[%emt 0:00:03]} 40. Rxa7 {[%emt 0:00:04]} gxh3 {[%emt 0:00:19]} 41. gxh3
{[%emt 0:00:36]} Kh6 {[%emt 0:11:06]} 42. Re1 {[%emt 0:10:06]} Rh2+ {[%emt 0:
02:23]} 43. Kg1 {[%emt 0:00:05]} Rg7+ {[%emt 0:00:11]} 44. Kf1 {[%emt 0:00:09]}
Rh1+ {[%emt 0:00:29]} 45. Kf2 {[%emt 0:01:00]} Bg3+ {[%emt 0:00:02]} 46. Kg2 {
[%emt 0:00:03]} Bxe1+ {[%emt 0:00:02]} 47. Rxg7 {[%emt 0:00:02]} Kxg7 {[%emt 0:
00:02]} 0-1

[Event "3eme tournoi de MI de JUVISY"]
[Site "Juvisy/Orge, France"]
[Date "2019.07.01"]
[Round "3.2"]
[White "LAZO, Andrei"]
[Black "ONKOUD, Abdelaziz"]
[Result "0-1"]
[ECO "A54"]
[WhiteElo "2279"]
[BlackElo "2328"]
[PlyCount "92"]
[EventDate "2019.??.??"]
[TimeControl "6600+725"]
[WhiteClock "0:30:31"]
[BlackClock "0:40:01"]

1. d4 {[%emt 18:40:45]} d6 {[%emt 0:25:01]} 2. c4 {[%emt 0:00:07]} e5 {[%emt 0:
00:43]} 3. e3 {[%emt 0:00:05]} Nf6 {[%emt 0:00:46]} 4. Nc3 {[%emt 0:00:13]} Be7
{[%emt 0:01:49]} 5. Nf3 {[%emt 0:07:19]} Nbd7 {[%emt 0:01:27]} 6. Be2 {[%emt 0:
03:16]} O-O {[%emt 0:00:18]} 7. h3 {[%emt 0:03:06]} c6 {[%emt 0:01:33]} 8. d5 {
[%emt 0:02:03]} cxd5 {[%emt 0:06:19]} 9. cxd5 {[%emt 0:00:53]} Ne8 {[%emt 0:00:
14]} 10. e4 {[%emt 0:00:28]} a6 {[%emt 0:01:07]} 11. a4 {[%emt 0:02:48]} a5 {
[%emt 0:03:11]} 12. Be3 {[%emt 0:00:36]} b6 {[%emt 0:00:35]} 13. Bb5 {[%emt 0:
06:10]} Nc5 {[%emt 0:00:29]} 14. Bxc5 {[%emt 0:02:29]} bxc5 {[%emt 0:00:57]}
15. Nd2 {[%emt 0:00:31]} g6 {[%emt 0:02:46]} 16. g4 {[%emt 0:02:39]} Ng7 {
[%emt 0:01:16]} 17. Rg1 {[%emt 0:01:10]} Rb8 {[%emt 0:06:45]} 18. Qf3 {[%emt 0:
03:54]} Bg5 {[%emt 0:03:07]} 19. Nc4 {[%emt 0:05:43]} h6 {[%emt 0:03:01]} 20.
Ne3 {[%emt 0:04:35]} Rb7 {[%emt 0:06:36]} 21. Qg2 {[%emt 0:12:34]} Kh8 {
[%emt 0:03:22]} 22. Ke2 {[%emt 0:09:12]} f5 {[%emt 0:05:32]} 23. f3 {[%emt 0:
02:50]} Rbf7 {[%emt 0:07:03]} 24. Raf1 {[%emt 0:01:07]} fxg4 {[%emt 0:10:17]}
25. hxg4 {[%emt 0:02:44]} Ne8 {[%emt 0:00:42]} 26. Rh1 {[%emt 0:03:54]} Nf6 {
[%emt 0:03:08]} 27. Ned1 {[%emt 0:11:21]} Nh7 {[%emt 0:01:43]} 28. Kd3 {
[%emt 0:04:48]} Kg7 {[%emt 0:04:27]} 29. Ne2 {[%emt 0:00:48]} Qb6 {[%emt 0:02:
15]} 30. b3 {[%emt 0:01:15]} Ba6 {[%emt 0:00:29]} 31. Nec3 {[%emt 0:06:01]} c4+
{[%emt 0:02:17]} 32. bxc4 {[%emt 0:00:10]} Qd4+ {[%emt 0:00:08]} 33. Kc2 {
[%emt 0:00:14]} Bxb5 {[%emt 0:00:11]} 34. axb5 {[%emt 0:04:14]} Qxc4 {[%emt 0:
01:51]} 35. Qe2 {[%emt 0:01:53]} Qb4 {[%emt 0:00:36]} 36. b6 {[%emt 0:05:36]}
Qxb6 {[%emt 0:01:25]} 37. Qb5 {[%emt 0:00:06]} Qc7 {[%emt 0:01:37]} 38. Rh3 {
[%emt 0:00:53]} Rb8 {[%emt 0:00:34]} 39. Qa4 {[%emt 0:00:35]} Rb4 {[%emt 0:01:
06]} 40. Qc6 {[%emt 0:01:24]} Qb8 {[%emt 0:01:05]} 41. Rfh1 {[%emt 0:02:13]}
Rc7 {[%emt 0:01:08]} 42. Qa6 {[%emt 0:03:03]} Rb6 {[%emt 0:01:47]} 43. Qf1 {
[%emt 0:05:50]} Rb1 {[%emt 0:01:12]} 44. Rxh6 {[%emt 0:01:51]} Qb3+ {[%emt 0:
00:48]} 45. Kd3 {[%emt 0:00:13]} Qc4+ {[%emt 0:00:20]} 46. Kc2 {[%emt 0:00:18]}
Qa2+ {[%emt 0:00:15]} 0-1

[Event "3eme tournoi de MI de JUVISY"]
[Site "Juvisy/Orge, France"]
[Date "2019.07.01"]
[Round "3.3"]
[White "HARUTYUNYAN, Ruben"]
[Black "BON, Michael"]
[Result "0-1"]
[ECO "B54"]
[WhiteElo "2316"]
[BlackElo "2400"]
[PlyCount "56"]
[EventDate "2019.??.??"]
[TimeControl "6600+2225"]
[WhiteClock "0:01:47"]
[BlackClock "0:29:53"]

1. e4 {[%emt 1:01:09]} c5 {[%emt 0:00:09]} 2. Nf3 {[%emt 0:00:04]} a6 {[%emt 0:
00:08]} 3. c4 {[%emt 0:00:07]} e6 {[%emt 0:00:22]} 4. Nc3 {[%emt 0:00:12]} d6 {
[%emt 0:00:44]} 5. d4 {[%emt 0:00:06]} cxd4 {[%emt 0:00:05]} 6. Nxd4 {[%emt 0:
00:03]} Nf6 {[%emt 0:00:16]} 7. Be2 {[%emt 0:00:04]} Be7 {[%emt 0:02:20]} 8.
O-O {[%emt 0:00:09]} Nc6 {[%emt 0:01:21]} 9. Be3 {[%emt 0:14:39]} O-O {[%emt 0:
01:38]} 10. f4 {[%emt 0:03:29]} Bd7 {[%emt 0:06:56]} 11. Nc2 {[%emt 0:01:05]}
Rc8 {[%emt 0:14:05]} 12. Bd3 {[%emt 0:37:31]} Na5 {[%emt 0:28:17]} 13. e5 {
[%emt 0:25:10]} Ne8 {[%emt 0:00:38]} 14. Qh5 {[%emt 0:01:52]} f5 {[%emt 0:02:
35]} 15. exf6 {[%emt 0:07:07]} Nxf6 {[%emt 0:00:10]} 16. Qe2 {[%emt 0:04:55]}
Qc7 {[%emt 0:03:16]} 17. g4 {[%emt 0:01:22]} Nxc4 {[%emt 0:06:44]} 18. g5 {
[%emt 0:00:03]} Nxb2 {[%emt 0:00:57]} 19. Bd4 {[%emt 0:07:25]} Nxd3 {[%emt 0:
01:08]} 20. Qxd3 {[%emt 0:01:02]} Nh5 {[%emt 0:02:38]} 21. Qe3 {[%emt 0:03:29]}
Qa5 {[%emt 0:02:46]} 22. h4 {[%emt 0:00:59]} Qf5 {[%emt 0:00:45]} 23. Ne1 {
[%emt 0:00:31]} Nxf4 {[%emt 0:02:26]} 24. Ng2 {[%emt 0:00:06]} Nxg2 {[%emt 0:
00:30]} 25. Kxg2 {[%emt 0:00:55]} Qg4+ {[%emt 0:00:28]} 26. Kh2 {[%emt 0:00:06]
} Qxh4+ {[%emt 0:00:11]} 27. Kg1 {[%emt 0:00:04]} Qg4+ {[%emt 0:02:14]} 28. Kh2
{[%emt 0:00:05]} Bc6 {[%emt 0:00:51]} 0-1

[Event "3eme tournoi de MI de JUVISY"]
[Site "Juvisy/Orge, France"]
[Date "2019.07.01"]
[Round "3.4"]
[White "MOUHAMAD, Joachim"]
[Black "DELORME, Alban"]
[Result "1/2-1/2"]
[ECO "B45"]
[WhiteElo "2302"]
[BlackElo "2327"]
[PlyCount "142"]
[EventDate "2019.??.??"]
[TimeControl "6600+1110"]
[WhiteClock "0:04:04"]
[BlackClock "0:54:31"]

1. e4 {[%emt 0:00:03]} c5 {[%emt 0:00:44]} 2. Nf3 {[%emt 0:00:14]} Nc6 {
[%emt 0:00:28]} 3. d4 {[%emt 0:00:08]} cxd4 {[%emt 0:00:12]} 4. Nxd4 {[%emt 0:
00:03]} Nf6 {[%emt 0:00:36]} 5. Nc3 {[%emt 0:00:07]} e6 {[%emt 0:00:30]} 6.
Ndb5 {[%emt 0:13:30]} Bb4 {[%emt 0:01:25]} 7. Nd6+ {[%emt 0:01:40]} Ke7 {
[%emt 0:00:10]} 8. Nxc8+ {[%emt 0:00:15]} Rxc8 {[%emt 0:00:11]} 9. Bd3 {
[%emt 0:00:47]} d5 {[%emt 0:03:59]} 10. exd5 {[%emt 0:01:40]} Qxd5 {[%emt 0:01:
36]} 11. O-O {[%emt 0:00:24]} Bxc3 {[%emt 0:00:33]} 12. bxc3 {[%emt 0:00:08]}
Rhd8 {[%emt 0:00:49]} 13. c4 {[%emt 0:13:43]} Qh5 {[%emt 0:05:53]} 14. Rb1 {
[%emt 0:02:39]} Rd7 {[%emt 0:03:28]} 15. Ba3+ {[%emt 0:03:45]} Ke8 {[%emt 0:00:
21]} 16. Qe1 {[%emt 0:18:59]} Qe5 {[%emt 0:05:25]} 17. Qd1 {[%emt 0:15:46]} Qh5
{[%emt 0:02:18]} 18. Qd2 {[%emt 0:02:45]} Qa5 {[%emt 0:11:22]} 19. Qc1 {
[%emt 0:00:02]} Ne5 {[%emt 0:03:06]} 20. Rb5 {[%emt 0:04:22]} Qc7 {[%emt 0:03:
47]} 21. Qg5 {[%emt 0:04:29]} Ng6 {[%emt 0:03:37]} 22. Rfb1 {[%emt 0:11:38]} h6
{[%emt 0:04:04]} 23. Qe3 {[%emt 0:07:03]} Ng4 {[%emt 0:01:04]} 24. Qh3 {
[%emt 0:03:12]} Qf4 {[%emt 0:02:12]} 25. Qg3 {[%emt 0:04:24]} Qxg3 {[%emt 0:00:
51]} 26. hxg3 {[%emt 0:00:05]} Rcc7 {[%emt 0:01:28]} 27. Be4 {[%emt 0:00:43]}
N6e5 {[%emt 0:02:18]} 28. Rxb7 {[%emt 0:00:43]} Rxc4 {[%emt 0:02:23]} 29. Rb8+
{[%emt 0:00:59]} Rd8 {[%emt 0:00:01]} 30. Rxd8+ {[%emt 0:00:40]} Kxd8 {[%emt 0:
00:02]} 31. f3 {[%emt 0:00:36]} f5 {[%emt 0:04:28]} 32. Bd3 {[%emt 0:00:34]}
Nxd3 {[%emt 0:01:06]} 33. cxd3 {[%emt 0:00:02]} Ra4 {[%emt 0:00:09]} 34. Bf8 {
[%emt 0:00:42]} Ne5 {[%emt 0:02:49]} 35. Bxg7 {[%emt 0:00:18]} Nf7 {[%emt 0:00:
50]} 36. Rb2 {[%emt 0:00:38]} e5 {[%emt 0:00:12]} 37. Bf8 {[%emt 0:00:20]} Kc7
{[%emt 0:01:16]} 38. Bc5 {[%emt 0:00:23]} a6 {[%emt 0:00:27]} 39. Bb6+ {
[%emt 0:00:20]} Kc6 {[%emt 0:00:35]} 40. Kf2 {[%emt 0:00:59]} Nd6 {[%emt 0:00:
39]} 41. g4 {[%emt 0:12:14]} fxg4 {[%emt 0:04:54]} 42. fxg4 {[%emt 0:00:20]}
Rxg4 {[%emt 0:00:11]} 43. Be3 {[%emt 0:00:08]} Nf5 {[%emt 0:01:08]} 44. Rb6+ {
[%emt 0:10:09]} Kd5 {[%emt 0:04:11]} 45. Bc1 {[%emt 0:03:12]} Ra4 {[%emt 0:01:
27]} 46. a3 {[%emt 0:00:02]} h5 {[%emt 0:01:27]} 47. Rb8 {[%emt 0:02:24]} Ra5 {
[%emt 0:08:14]} 48. Rd8+ {[%emt 0:00:27]} Ke6 {[%emt 0:01:08]} 49. Rc8 {
[%emt 0:02:59]} Rd5 {[%emt 0:02:58]} 50. Rc3 {[%emt 0:01:27]} Nd4 {[%emt 0:00:
35]} 51. Ke3 {[%emt 0:03:08]} Kf5 {[%emt 0:00:40]} 52. Rc8 {[%emt 0:00:53]} Ne6
{[%emt 0:00:42]} 53. Ke2 {[%emt 0:04:11]} Rc5 {[%emt 0:02:47]} 54. Rxc5 {
[%emt 0:00:09]} Nxc5 {[%emt 0:00:03]} 55. Be3 {[%emt 0:01:40]} Ne6 {[%emt 0:00:
02]} 56. Kf3 {[%emt 0:01:08]} Nc7 {[%emt 0:01:18]} 57. Kg3 {[%emt 0:00:29]} Nb5
{[%emt 0:01:53]} 58. Bc5 {[%emt 0:00:47]} Nc3 {[%emt 0:00:21]} 59. Kh4 {
[%emt 0:00:17]} Na4 {[%emt 0:00:30]} 60. Ba7 {[%emt 0:03:58]} Nb2 {[%emt 0:05:
34]} 61. Kxh5 {[%emt 0:00:02]} Nxd3 {[%emt 0:00:08]} 62. g4+ {[%emt 0:00:07]}
Ke6 {[%emt 0:00:59]} 63. Kh6 {[%emt 0:00:57]} e4 {[%emt 0:00:30]} 64. g5 {
[%emt 0:00:09]} Ne5 {[%emt 0:00:09]} 65. g6 {[%emt 0:00:51]} Nxg6 {[%emt 0:00:
45]} 66. Kxg6 {[%emt 0:00:05]} e3 {[%emt 0:00:06]} 67. Bxe3 {[%emt 0:00:05]} a5
{[%emt 0:00:10]} 68. a4 {[%emt 0:00:03]} Kd5 {[%emt 0:00:10]} 69. Bb6 {[%emt 0:
00:07]} Kc4 {[%emt 0:00:04]} 70. Bxa5 {[%emt 0:00:05]} Kb3 {[%emt 0:00:04]} 71.
Bb6 {[%emt 0:00:04]} Kxa4 {[%emt 0:00:05]} 1/2-1/2